bitfinex/quotes_SOLUSD_20251208
["timestamp","ask_amount","ask_price","bid_price","bid_amount"]
[1765161928246,0.7,134.06,134.05,2.17828966]
[1765161928740,0.7,134.06,134.05,3.40009227]
[1765161929045,8.15934656,134.06,134.05,3.40009227]
[1765161929866,8.15934656,134.06,133.98,3.40009227]
[1765161930035,0.7,134.05,134.0,3.40009227]
[1765161930440,0.7,134.05,133.98,3.40009227]
[1765161930441,11.64009227,134.04,133.98,3.40009227]
[1765161930867,0.7,134.03,133.98,3.40009227]
[1765161931256,7.46157289,134.02,133.98,3.40009227]
[1765161931457,7.46157289,134.02,133.99,3.40009227]
[1765161931662,0.7,134.01,133.99,3.40009227]
[1765161932066,0.7,134.01,134.0,3.40009227]
[1765161933245,8.16212969,134.01,134.0,3.40009227]
[1765161933650,8.16212969,134.01,133.99,3.40009227]
[1765161933854,0.7,134.0,133.99,3.40009227]
[1765161936480,8.16268656,134.0,133.99,3.40009227]
[1765161936689,8.16268656,134.0,133.94,7.46585736]
[1765161936848,0.7,133.99,133.95,3.40009227]
[1765161937184,7.46380056,133.98,133.95,3.40009227]
[1765161937544,0.7,133.97,133.95,3.40009227]
[1765161938265,0.7,133.97,133.96,3.40009227]
[1765161938466,0.7,133.98,133.96,3.40009227]
[1765161939373,0.7,133.98,133.97,3.40009227]
[1765161939973,0.7,133.98,133.96,3.40009227]
[1765161940873,0.7,133.98,133.97,3.40009227]
[1765161941371,8.16380056,133.98,133.97,3.40009227]
[1765161941872,8.16380056,133.98,133.96,3.40009227]
[1765161942373,113.04,134.01,133.97,3.40009227]
[1765161942564,0.7,134.0,133.98,3.40009227]
[1765161942763,0.7,134.0,133.99,3.40009227]
[1765161943006,112.26219803,134.01,133.99,3.40009227]
[1765161943151,112.26219803,134.01,134.0,3.40009227]
[1765161943358,7.46219803,134.01,134.0,3.40009227]
[1765161944476,7.46157289,134.02,134.0,3.40009227]
[1765161944860,0.7,134.01,133.99,3.40009227]
[1765161945581,0.7,134.01,133.98,3.40009227]
[1765161945876,4.10009227,134.01,133.96,3.40009227]
[1765161946076,4.10009227,134.01,133.95,3.40009227]
[1765161946256,0.7,134.0,133.95,3.40009227]
[1765161946456,7.46324352,133.99,133.96,3.40009227]
[1765161947071,0.7,133.98,133.96,3.40009227]
[1765161947668,8.16412338,133.98,133.96,3.40009227]
[1765161948867,0.7,133.97,133.96,3.40009227]
[1765161950863,8.17401523,133.98,133.96,3.40009227]
[1765161951792,8.17401523,133.98,133.94,16.40594716]
[1765161951793,8.17401523,133.98,133.97,3.40009227]
[1765161952297,0.71,134.02,133.97,12.34009227]
[1765161952462,0.71,134.02,134.0,3.40009227]
[1765161952664,7.46231699,134.01,134.0,3.40009227]
[1765161953282,8.17231699,134.01,134.0,3.40009227]
[1765161955672,0.71,134.02,134.0,3.40009227]
[1765161956994,7.46212969,134.01,133.99,3.40009227]
[1765161957595,7.46212969,134.01,133.99,4.10009227]
[1765161957900,7.46212969,134.01,134.0,3.90009227]
[1765161959103,104.8,134.04,134.0,4.60009227]
[1765161959402,40.69484847,134.07,134.03,3.40009227]
[1765161959403,18.64720504,134.07,134.03,3.40009227]
[1765161959569,0.71,134.04,134.03,3.40009227]
[1765161960873,8.17045956,134.04,134.03,3.40009227]
[1765161961687,0.71,134.04,134.03,3.40009227]
[1765161962576,7.46013118,134.05,134.03,3.40009227]
[1765161962799,7.45956046,134.06,134.04,3.40009227]
[1765161963002,8.16956046,134.06,134.05,3.40009227]
[1765161963179,7.45956046,134.06,134.04,3.40009227]
[1765161963505,0.71,134.05,134.04,3.40009227]
[1765161963690,129.348864,134.09,134.05,0.7]
[1765161963691,7.45823389,134.08,134.05,0.7]
[1765161963997,7.45784436,134.09,134.07,3.40009227]
[1765161964307,7.45784436,134.09,134.08,3.40009227]
[1765161964681,8.16784436,134.09,134.08,3.40009227]
[1765161965187,8.16784436,134.09,134.05,3.40009227]
[1765161965384,0.71,134.08,134.05,3.40009227]
[1765161966185,0.71,134.08,134.04,3.40009227]
[1765161966590,26.10576564,134.07,134.03,3.40009227]
[1765161967083,0.71,134.06,134.03,3.40009227]
[1765161967894,0.71,134.06,134.04,0.5]
[1765161968708,7.45990302,134.05,134.04,0.5]
[1765161968880,7.45990302,134.05,134.02,3.40009227]
[1765161969081,0.71,134.04,134.02,3.40009227]
[1765161970081,8.17098043,134.04,134.01,3.40009227]
[1765161970288,8.17098043,134.04,134.02,3.40009227]
[1765161972305,7.46098043,134.04,134.01,3.40009227]
[1765161972613,0.71,134.03,134.0,11.64009227]
[1765161972906,8.17098043,134.04,134.02,3.90009227]
[1765161973080,0.71,134.03,134.02,3.90009227]
[1765161973689,7.46098043,134.04,134.02,3.90009227]
[1765161973889,8.17098043,134.04,134.02,3.90009227]
[1765161974486,0.71,134.06,134.03,3.40009227]
[1765161976016,7.45990302,134.05,134.03,3.40009227]
[1765161976514,18.64462525,134.09,134.04,4.07009227]
[1765161976809,0.67,134.08,134.05,3.40009227]
[1765161977216,0.67,134.08,134.06,3.40009227]
[1765161977709,8.1284328,134.08,134.06,3.40009227]
[1765161979496,0.67,134.07,134.05,3.40009227]
[1765161981220,0.67,134.07,134.06,3.40009227]
[1765161981399,8.12879018,134.07,134.06,3.40009227]
[1765161982406,8.12879018,134.07,134.04,3.40009227]
[1765161982609,0.68,134.06,134.03,3.40009227]
[1765161982912,0.68,134.06,134.01,11.64009227]
[1765161983517,7.45990302,134.05,134.01,11.64009227]
[1765161983702,26.10966057,134.05,134.01,3.40009227]
[1765161983906,0.68,134.04,134.01,3.40009227]
[1765161984598,0.68,134.04,134.02,3.40009227]
[1765161984793,0.68,134.04,134.01,3.40009227]
[1765161984993,0.68,134.04,134.0,0.68]
[1765161984994,0.68,134.04,134.02,3.40009227]
[1765161985605,7.45934656,134.06,134.03,3.40009227]
[1765161985791,8.13934656,134.06,134.03,3.40009227]
[1765161985996,8.13934656,134.06,134.04,3.40009227]
[1765161987318,7.45934656,134.06,134.04,3.40009227]
[1765161987625,0.68,134.05,134.03,3.40009227]
[1765161987825,8.13934656,134.06,134.03,3.40009227]
[1765161988028,8.13934656,134.06,134.05,0.5]
[1765161988204,7.45934656,134.06,134.05,0.5]
[1765161988816,8.13934656,134.06,134.05,0.5]
[1765161989323,7.45934656,134.06,134.05,0.5]
[1765161989525,139.75310843,134.09,134.05,4.58009227]
[1765161989707,121.788864,134.09,134.06,3.40009227]
[1765161989903,0.68,134.08,134.06,3.40009227]
[1765161990306,128.56656157,134.09,134.06,3.40009227]
[1765161990729,0.68,134.08,134.06,2.17551641]
[1765161991107,0.68,134.08,134.07,2.17551641]
[1765161991299,128.56656157,134.09,134.07,2.17551641]
[1765161991635,105.48,134.09,134.07,2.17551641]
[1765161991799,104.8,134.09,134.08,2.17551641]
[1765161992004,112.25767767,134.09,134.06,2.17551641]
[1765161992221,130.90187186,134.09,134.06,2.17551641]
[1765161992428,0.68,134.08,134.06,2.17551641]
[1765161992822,112.25767767,134.09,134.07,2.17551641]
[1765161993329,0.68,134.08,134.07,2.17551641]
[1765161994419,8.13823389,134.08,134.07,2.17551641]
[1765161995414,112.9378957,134.09,134.07,2.17551641]
[1765161995910,0.68,134.08,134.07,2.17551641]
[1765161996232,0.68,134.08,134.05,0.5]
[1765161996437,7.45879018,134.07,134.05,0.5]
[1765161997114,0.68,134.06,134.05,0.5]
[1765161998037,0.68,134.06,134.02,8.14120136]
[1765161998038,0.68,134.06,134.02,2.17551641]
[1765161998235,0.68,134.06,134.01,2.17551641]
[1765161998738,7.45990302,134.05,134.02,2.17551641]
[1765161999121,7.45990302,134.05,134.04,2.17551641]
[1765161999122,8.13990302,134.05,134.04,2.17551641]
[1765161999439,8.13990302,134.05,134.03,2.17551641]
[1765162000038,8.13990302,134.05,134.04,2.17551641]
[1765162000238,8.13990302,134.05,134.03,2.17551641]
[1765162000449,121.108864,134.09,134.04,2.17551641]
[1765162000450,0.68,134.07,134.04,2.17551641]
[1765162000608,0.68,134.04,134.02,2.17551641]
[1765162001525,0.68,134.06,134.03,2.85551641]
[1765162001734,0.68,134.06,134.04,2.17551641]
[1765162003243,8.13975067,134.06,134.04,2.17551641]
[1765162003442,8.13975067,134.06,134.03,2.17551641]
[1765162003638,0.68,134.05,134.03,2.17551641]
[1765162005146,0.68,134.05,134.02,2.17551641]
[1765162005532,8.14043799,134.05,134.02,2.17551641]
[1765162005939,0.68,134.04,134.02,2.17551641]
[1765162006441,7.46043799,134.05,134.03,2.17551641]
[1765162006738,7.45953706,134.06,134.03,2.17551641]
[1765162006943,0.68,134.05,134.03,2.17551641]
[1765162007139,0.68,134.05,134.02,2.17551641]
[1765162007639,0.68,134.05,134.03,2.17551641]
[1765162008135,0.68,134.05,134.02,9.63707737]
[1765162008342,0.68,134.05,134.01,2.17551641]
[1765162008343,8.13999413,134.05,134.01,2.17551641]
[1765162008732,0.68,134.04,134.01,2.17551641]
[1765162010454,8.14059283,134.04,134.01,2.17551641]
[1765162010947,0.66,134.03,133.99,2.17551641]
[1765162011828,0.66,134.03,134.0,2.82551641]
[1765162012027,0.66,134.03,134.0,2.17551641]
[1765162012540,8.12146113,134.03,134.0,2.17551641]
[1765162012734,26.7740016,134.03,133.99,2.17551641]
[1765162012938,0.66,134.02,133.99,2.17551641]
[1765162014958,8.12168522,134.02,133.99,2.17551641]
[1765162015666,7.46168522,134.02,133.99,2.17551641]
[1765162015861,8.12168522,134.02,133.99,2.17551641]
[1765162017036,105.46,134.05,134.01,2.17551641]
[1765162017245,105.46,134.05,134.03,2.17551641]
[1765162017463,104.8,134.05,134.02,2.17551641]
[1765162017763,0.66,134.04,134.02,2.17551641]
[1765162018654,8.12046562,134.04,134.02,2.17551641]
[1765162020853,112.26007209,134.05,134.03,2.17551641]
[1765162021062,104.8,134.05,134.04,2.17551641]
[1765162021563,105.46,134.05,134.04,2.17551641]
[1765162021953,104.8,134.05,134.04,2.17551641]
[1765162022949,8.11899189,134.07,134.04,2.17551641]
[1765162023563,0.66,134.06,134.04,2.17551641]
[1765162023755,8.11899189,134.07,134.05,2.17551641]
[1765162024572,8.11899189,134.07,134.04,2.17551641]
[1765162024765,8.11941877,134.06,134.03,2.17551641]
[1765162025590,0.66,134.06,134.04,2.17551641]
[1765162025862,8.11894772,134.07,134.05,2.17551641]
[1765162026066,113.04,134.08,134.06,2.17551641]
[1765162026067,104.8,134.08,134.06,2.17551641]
[1765162026372,105.46,134.08,134.06,2.17551641]
[1765162027367,112.91823683,134.08,134.06,2.17551641]
[1765162029274,105.46,134.08,134.06,2.17551641]
[1765162030770,112.91831113,134.08,134.06,2.17551641]
[1765162031158,8.1191382,134.07,134.05,2.17551641]
[1765162031346,0.66,134.06,134.03,2.17551641]
[1765162032774,7.45990302,134.05,134.03,2.17551641]
[1765162035174,0.66,134.06,134.03,9.63621799]
[1765162035487,0.66,134.1,134.05,2.17551641]
[1765162035775,0.66,134.11,134.08,2.17551641]
[1765162035985,0.66,134.11,134.09,2.17551641]
[1765162036577,8.1165655,134.11,134.09,2.17551641]
[1765162037669,0.7,134.1,134.08,2.17551641]
[1765162038059,0.7,134.1,134.09,2.17551641]
[1765162038767,0.7,134.1,134.08,2.17551641]
[1765162039362,0.7,134.11,134.09,2.17551641]
[1765162040356,0.7,134.11,134.08,2.17551641]
[1765162040557,0.7,134.11,134.06,2.17551641]
[1765162040558,7.45712155,134.1,134.06,2.17551641]
[1765162040778,26.09992542,134.1,134.06,2.17551641]
[1765162041075,0.69,134.09,134.06,2.17551641]
[1765162041282,0.69,134.1,134.08,2.17551641]
[1765162041481,0.69,134.1,134.09,2.17551641]
[1765162042070,32.79506612,134.12,134.09,2.17551641]
[1765162042264,16.48620212,134.12,134.1,2.17551641]
[1765162042466,0.69,134.11,134.09,2.17551641]
[1765162043272,0.1,134.12,134.1,2.17551641]
[1765162043487,0.79,134.12,134.1,2.17551641]
[1765162044990,8.24601634,134.12,134.09,9.63287553]
[1765162045755,8.24601634,134.12,134.09,2.17551641]
[1765162045756,0.69,134.11,134.09,2.17551641]
[1765162045960,0.69,134.11,134.08,2.17551641]
[1765162047082,8.14686001,134.11,134.08,2.17551641]
[1765162047474,0.69,134.1,134.07,17.87429463]
[1765162047684,0.69,134.1,134.07,18.55429463]
[1765162047980,0.69,134.11,134.07,18.55429463]
[1765162048185,0.69,134.1,134.07,18.55429463]
[1765162049091,0.69,134.1,134.07,8.24]
[1765162049276,8.14717215,134.1,134.07,8.24]
[1765162049480,8.14717215,134.1,134.05,9.63526871]
[1765162049784,0.69,134.09,134.05,9.63526871]
[1765162050796,8.14805677,134.09,134.05,10.85965679]
[1765162051279,0.69,134.08,134.05,10.85965679]
[1765162051984,8.14712155,134.1,134.06,0.68]
[1765162052178,8.14712155,134.1,134.05,10.85965679]
[1765162052383,0.69,134.09,134.05,10.85965679]
[1765162052683,0.69,134.09,134.05,11.53965679]
[1765162053662,8.14785596,134.09,134.05,11.53965679]
[1765162054375,7.45785596,134.09,134.05,11.53965679]
[1765162054580,0.69,134.08,134.05,11.53965679]
[1765162056076,0.69,134.08,134.02,25.80050183]
[1765162056077,116.34819478,134.08,134.02,25.80050183]
[1765162056403,124.58819478,134.08,134.02,3.39990449]
[1765162056698,0.69,134.07,134.02,11.54109675]
[1765162057674,0.69,134.07,134.03,4.07990449]
[1765162057876,8.1489248,134.07,134.03,11.54069915]
[1765162058275,8.1489248,134.07,134.03,10.86069915]
[1765162058498,0.69,134.06,134.03,10.86069915]
[1765162058796,0.69,134.06,134.03,7.46079466]
[1765162058994,0.69,134.06,134.03,10.86069915]
[1765162060185,112.94844333,134.08,134.04,4.07990449]
[1765162060703,0.69,134.07,134.03,3.39990449]
[1765162062299,8.14905163,134.07,134.03,3.39990449]
[1765162062606,8.14905163,134.07,134.03,4.07990449]
[1765162062902,0.69,134.06,134.03,4.07990449]
[1765162063583,0.69,134.06,134.03,11.54086047]
[1765162066809,8.14939814,134.06,134.03,10.86086047]
[1765162067180,0.69,134.06,134.03,11.54086047]
[1765162067381,104.8,134.08,134.05,3.39990449]
[1765162067687,8.14724428,134.1,134.07,3.39990449]
[1765162068090,7.45724428,134.1,134.07,3.39990449]
[1765162068294,0.69,134.09,134.07,3.39990449]
[1765162069012,0.69,134.09,134.03,34.96140447]
[1765162069013,26.79223504,134.09,134.03,8.24]
[1765162069310,3.39990449,134.05,133.98,11.63990449]
[1765162069603,3.39990449,134.05,133.99,3.39990449]
[1765162069604,27.94876849,134.05,133.99,3.39990449]
[1765162069788,0.69,134.04,133.99,3.39990449]
[1765162070179,4.08990449,134.04,133.98,11.63990449]
[1765162070376,0.69,134.04,133.98,12.31990449]
[1765162070720,7.46157289,134.02,133.98,11.63990449]
[1765162071213,0.7,134.01,133.98,11.63990449]
[1765162072304,8.16229203,134.01,133.98,11.63990449]
[1765162074383,0.7,134.02,133.98,12.31990449]
[1765162075892,7.46212969,134.01,133.98,12.31990449]
[1765162076514,8.16212969,134.01,133.98,12.31990449]
[1765162079699,7.46177587,134.02,133.98,11.63990449]
[1765162080021,8.15177587,134.02,133.99,0.71]
[1765162080196,0.69,134.01,133.98,11.63990449]
[1765162080518,0.69,134.01,133.98,12.34990449]
[1765162080810,0.69,134.01,133.98,11.63990449]
[1765162080990,8.15243251,134.01,133.98,3.39990449]
[1765162081407,8.15243251,134.01,133.95,16.308864]
[1765162081611,0.69,134.0,133.95,27.94876849]
[1765162082091,0.69,134.0,133.95,19.81536888]
[1765162082286,7.46243251,134.01,133.96,0.71]
[1765162082508,0.69,133.99,133.96,3.39990449]
[1765162083289,8.15347937,133.99,133.95,3.39990449]
[1765162083612,8.15347937,133.99,133.95,8.24]
[1765162083804,0.69,133.98,133.95,8.24]
[1765162084514,0.69,133.98,133.96,3.39990449]
[1765162084905,0.69,133.98,133.95,12.34990449]
[1765162085603,8.15397559,133.98,133.95,11.63990449]
[1765162086213,0.69,133.97,133.95,11.63990449]
[1765162087521,0.69,133.98,133.95,11.63990449]
[1765162089127,8.15405846,133.98,133.95,11.63990449]
[1765162089724,8.15405846,133.98,133.93,7.46642706]
[1765162089904,0.69,133.97,133.93,10.86633155]
[1765162090533,0.69,133.97,133.94,4.10990449]
[1765162090702,8.15437359,133.97,133.94,4.10990449]
[1765162091631,8.15437359,133.97,133.94,3.39990449]
[1765162093721,0.69,133.96,133.94,3.39990449]
[1765162096942,8.15499743,133.96,133.94,3.39990449]
[1765162097506,8.15499743,133.96,133.93,11.57633155]
[1765162098145,7.46459651,133.97,133.93,11.57633155]
[1765162098347,8.15459651,133.97,133.93,11.57633155]
[1765162098509,7.46459651,133.97,133.93,11.57633155]
[1765162098709,0.69,133.96,133.93,11.57633155]
[1765162102737,0.69,133.96,133.94,3.39990449]
[1765162103515,8.15497738,133.96,133.94,3.39990449]
[1765162105339,7.46497738,133.96,133.93,3.39990449]
[1765162105534,0.72,133.95,133.92,0.2]
[1765162106749,7.46602956,133.94,133.92,0.2]
[1765162107224,0.72,133.93,133.92,0.2]
[1765162112039,7.4652627,133.96,133.92,10.53759301]
[1765162112247,8.1852627,133.96,133.95,2.18054384]
[1765162112554,8.1852627,133.96,133.94,2.18054384]
[1765162114144,121.22389813,133.98,133.95,2.87054384]
[1765162114356,112.98389813,133.98,133.96,2.18054384]
[1765162114542,0.72,133.97,133.95,2.18054384]
[1765162115745,8.1844395,133.97,133.95,2.18054384]
[1765162116652,0.72,133.96,133.93,2.18054384]
[1765162118024,8.18533188,133.96,133.93,2.18054384]
[1765162118228,8.18533188,133.96,133.92,2.38054384]
[1765162118529,0.72,133.95,133.92,0.2]
[1765162120642,7.46602956,133.94,133.92,0.2]
[1765162120842,7.46602956,133.94,133.92,2.38054384]
[1765162121047,8.18602956,133.94,133.92,2.38054384]
[1765162122045,0.72,133.93,133.92,2.38054384]
[1765162122433,0.72,133.93,133.92,0.2]
[1765162123534,34.36915266,133.95,133.92,0.2]
[1765162123761,0.72,133.94,133.92,2.38054384]
[1765162124259,8.18610937,133.94,133.92,2.38054384]
[1765162125057,7.46610937,133.94,133.92,2.38054384]
[1765162128249,0.72,133.93,133.92,2.38054384]
[1765162129450,7.46610937,133.94,133.92,2.38054384]
[1765162129651,8.18610937,133.94,133.92,2.38054384]
[1765162130465,16.308864,133.92,133.9,0.2]
[1765162130680,27.44940784,133.91,133.9,0.2]
[1765162131168,25.268864,133.91,133.9,0.2]
[1765162131355,28.26007731,133.91,133.9,0.2]
[1765162131563,30.44062115,133.91,133.9,0.2]
[1765162132155,39.25056607,133.91,133.9,1e-08]
[1765162132546,46.71826825,133.91,133.9,1e-08]
[1765162137373,8.80994492,133.89,133.88,1e-08]
[1765162137570,19.23048876,133.89,133.88,1e-08]
[1765162137770,19.95048876,133.89,133.88,1e-08]
[1765162138452,9.52994492,133.89,133.88,1e-08]
[1765162138652,17.76994492,133.89,133.88,1e-08]
[1765162139081,25.2387626,133.89,133.88,1e-08]
[1765162139453,16.42881768,133.89,133.88,1e-08]
[1765162139951,0.72,133.91,133.88,0.71000001]
[1765162140265,47.04339598,133.98,133.89,2.18054384]
[1765162140266,11.950766,133.93,133.89,2.18054384]
[1765162140474,11.950766,133.93,133.88,2.89054385]
[1765162140684,0.72,133.92,133.88,2.89054385]
[1765162140976,8.24,133.91,133.88,1e-08]
[1765162141155,7.46825989,133.9,133.88,1e-08]
[1765162141351,8.18825989,133.9,133.88,1e-08]
[1765162141569,0.72,133.89,133.88,1e-08]
[1765162143364,21.66192745,133.91,133.88,2.89054385]
[1765162143554,18.67049044,133.91,133.89,2.18054384]
[1765162143754,7.46825989,133.9,133.89,2.89054384]
[1765162144373,7.46786396,133.91,133.89,2.89054384]
[1765162146169,7.46786396,133.91,133.89,2.18054384]
[1765162146786,8.18786396,133.91,133.88,2.89054385]
[1765162146984,8.18861108,133.9,133.88,1e-08]
[1765162147779,7.46861108,133.9,133.88,1e-08]
[1765162148071,7.46861108,133.9,133.88,0.71000001]
[1765162148272,0.72,133.89,133.88,1e-08]
[1765162149454,8.18881768,133.89,133.88,1e-08]
[1765162150684,7.46881768,133.89,133.88,1e-08]
[1765162151563,8.18881768,133.89,133.88,1e-08]
[1765162153664,16.42881768,133.89,133.88,1e-08]
[1765162154187,19.42047842,133.89,133.88,1e-08]
[1765162155297,7.46881768,133.89,133.88,0.71000001]
[1765162155885,7.46844892,133.9,133.88,2.89054385]
[1765162156092,126.46169758,133.91,133.88,2.89054385]
[1765162156093,104.8,133.91,133.89,2.18054384]
[1765162156301,21.65795465,133.93,133.9,2.18054384]
[1765162156484,18.66718865,133.93,133.9,2.89054384]
[1765162157067,7.4671656,133.92,133.9,2.89054384]
[1765162158489,8.96,133.91,133.88,1e-08]
[1765162158999,27.29935276,133.89,133.88,1e-08]
[1765162159166,35.53935276,133.89,133.88,1e-08]
[1765162159371,36.25935276,133.89,133.88,1e-08]
[1765162159786,43.72817044,133.89,133.88,1e-08]
[1765162160898,9.46994492,133.88,133.87,1e-08]
[1765162161105,11.65048876,133.88,133.87,1e-08]
[1765162162290,16.27932048,133.88,133.87,1e-08]
[1765162162495,7.46937556,133.88,133.87,1e-08]
[1765162164501,16.308864,133.88,133.87,1e-08]
[1765162165086,32.01768168,133.89,133.87,1e-08]
[1765162165797,8.12937556,133.88,133.87,1e-08]
[1765162166375,7.46937556,133.88,133.87,1e-08]
[1765162167198,8.12937556,133.88,133.87,1e-08]
[1765162168305,16.93932048,133.88,133.87,1e-08]
[1765162168489,19.11986432,133.88,133.87,1e-08]
[1765162170692,22.11219646,133.88,133.87,1e-08]
[1765162172909,23.3438663,133.88,133.87,1e-08]
[1765162179715,19.93165262,133.88,133.87,1e-08]
[1765162179891,27.51165262,133.88,133.87,1e-08]
[1765162180091,24.51932048,133.88,133.87,1e-08]
[1765162180287,25.17932048,133.88,133.87,1e-08]
[1765162180495,28.79153416,133.88,133.87,1e-08]
[1765162181404,25.17932048,133.88,133.87,1e-08]
[1765162181793,28.17165262,133.88,133.87,1e-08]
[1765162182317,31.5838663,133.88,133.87,1e-08]
[1765162185809,8.80994492,133.85,133.84,0.2]
[1765162186119,8.24,133.85,133.84,0.92]
[1765162186325,15.71104968,133.85,133.84,0.92]
[1765162186816,7.47104968,133.85,133.84,0.92]
[1765162188420,7.47104968,133.85,133.84,0.2]
[1765162189411,7.47104968,133.85,133.84,0.92]
[1765162192302,7.47104968,133.85,133.84,4.33221368]
[1765162192637,26.14610208,133.87,133.84,4.33221368]
[1765162192814,26.14610208,133.87,133.85,0.72]
[1765162193810,8.95,133.86,133.84,0.2]
[1765162194130,16.308864,133.85,133.84,0.2]
[1765162195937,23.77991368,133.85,133.84,0.92]
[1765162196141,26.1415527,133.89,133.84,4.33221368]
[1765162196346,26.1415527,133.89,133.87,3.41221368]
[1765162196516,7.46881768,133.89,133.87,3.41221368]
[1765162196710,7.46881768,133.89,133.88,0.72]
[1765162197622,26.14086189,133.89,133.86,4.09221368]
[1765162197821,26.14086189,133.89,133.86,3.41221368]
[1765162198028,26.14086189,133.89,133.87,0.68]
[1765162199237,34.38086189,133.89,133.87,0.68]
[1765162199415,34.38086189,133.89,133.86,0.68]
[1765162199949,7.46881768,133.89,133.88,3.41221368]
[1765162200324,7.46881768,133.89,133.88,4.09221368]
[1765162201441,7.46881768,133.89,133.88,0.68]
[1765162204343,7.46881768,133.89,133.85,4.09221368]
[1765162204642,8.15881768,133.89,133.86,0.68]
[1765162205618,26.83086189,133.89,133.86,0.68]
[1765162206244,104.8,133.9,133.88,3.41221368]
[1765162206538,7.4681194,133.91,133.89,3.41221368]
[1765162206715,7.4681194,133.91,133.9,0.68]
[1765162207222,7.4681194,133.91,133.89,3.41221368]
[1765162207439,26.13737487,133.91,133.86,0.68]
[1765162207622,26.13737487,133.91,133.85,3.41221368]
[1765162207623,105.49,133.9,133.87,0.68]
[1765162207828,113.73,133.9,133.85,4.09221368]
[1765162208023,0.69,133.89,133.86,0.68]
[1765162208947,113.04,133.9,133.87,3.41221368]
[1765162209418,7.46881768,133.89,133.88,0.68]
[1765162209947,104.8,133.9,133.88,4.09221368]
[1765162210136,104.8,133.9,133.89,3.41221368]
[1765162210331,7.46780227,133.91,133.89,4.09221368]
[1765162210535,7.46780227,133.91,133.9,0.68]
[1765162210748,16.308864,133.92,133.9,4.09221368]
[1765162211037,0.69,133.97,133.9,4.09221368]
[1765162211038,0.69,133.99,133.91,6.82442736]
[1765162211237,16.308864,133.96,133.93,3.41221368]
[1765162211456,7.46547219,133.95,133.93,3.41221368]
[1765162211762,7.46547219,133.95,133.93,4.09221368]
[1765162212534,7.46547219,133.95,133.93,3.41221368]
[1765162212734,7.46547219,133.95,133.93,4.09221368]
[1765162212938,7.46547219,133.95,133.93,0.68]
[1765162214362,7.46547219,133.95,133.93,4.09221368]
[1765162215149,7.46547219,133.95,133.94,0.68]
[1765162216460,32.03382032,133.96,133.94,4.09221368]
[1765162218852,32.72382032,133.96,133.93,3.41221368]
[1765162219054,32.03382032,133.96,133.93,3.41221368]
[1765162219548,32.03382032,133.96,133.94,0.68]
[1765162222971,15.72495632,133.96,133.94,4.09221368]
[1765162223162,15.72495632,133.96,133.95,3.41221368]
[1765162223163,7.46495632,133.96,133.95,3.41221368]
[1765162223469,7.46495632,133.96,133.95,4.06221368]
[1765162225876,7.46495632,133.96,133.94,3.41221368]
[1765162226462,7.46495632,133.96,133.94,4.06221368]
[1765162231376,112.26444136,133.97,133.95,0.65]
[1765162231583,112.26444136,133.97,133.94,4.06221368]
[1765162231763,112.92444136,133.97,133.94,4.06221368]
[1765162232583,112.26444136,133.97,133.95,0.65]
[1765162232796,112.26444136,133.97,133.95,4.06221368]
[1765162233253,117.11221368,133.96,133.91,0.65]
[1765162233456,130.008864,133.96,133.92,4.06221368]
[1765162233657,121.108864,133.96,133.95,3.41221368]
[1765162234079,104.8,133.96,133.95,4.06221368]
[1765162234687,104.8,133.96,133.95,2.82931588]
[1765162235881,7.46394686,133.98,133.95,2.82931588]
[1765162236067,7.46394686,133.98,133.96,0.65]
[1765162237159,7.46361896,133.99,133.97,2.17931588]
[1765162237575,7.46268656,134.0,133.97,2.17931588]
[1765162237754,7.46268656,134.0,133.98,0.65]
[1765162239161,7.46268656,134.0,133.98,2.82931588]
[1765162240791,7.46268656,134.0,133.98,2.17931588]
[1765162240963,8.12268656,134.0,133.97,2.82931588]
[1765162242279,112.92268656,134.0,133.97,2.82931588]
[1765162243488,131.57940297,134.0,133.97,2.82931588]
[1765162249485,131.57940297,134.0,133.97,0.65]
[1765162250304,131.57940297,134.0,133.97,2.82931588]
[1765162250505,104.8,134.0,133.99,2.17931588]
[1765162251101,0.1,134.02,133.99,2.85931588]
[1765162251293,0.1,134.02,134.01,2.17931588]
[1765162251496,0.1,134.02,133.98,2.17931588]